[Event "German Bundesliga 2023-24"]
[Site "Germany"]
[Date "2024.02.23"]
[Round "9.17"]
[White "Anand, Viswanathan"]
[Black "Abasov, Nijat"]
[Result "1-0"]
[ECO "B30"]
[WhiteElo "2748"]
[BlackElo "2641"]
[Annotator "TA"]
[PlyCount "93"]
[EventDate "2023.10.20"]
[EventType "team-tourn"]
[EventCountry "GER"]
[SourceTitle "playchess.com"]
[Source "ChessBase"]
[SourceQuality "1"]
[TimeControl "40/6000+30:3000+30"]

{[%evp 9,93,4,52,50,64,28,29,25,33,31,31,18,33,0,37,31,32,32,67,62,64,37,52,64,44,52,83,82,79,50,45,47,42,54,64,18,28,0,15,6,0,0,20,24,19,10,47,56,95,75,78,41,77,53,108,105,115,105,137,132,142,128,147,68,166,164,205,66,67,139,168,167,214,216,450,214,1092,847,1731,1677,2435,1815,2506,2530,29976,29967]} 1. e4 {[%emt 0:00:04]} c5 {[%emt 0:00:06]} 2. Nf3 {[%emt 0:00:04]} Nc6 {[%emt 0:00:07]} 3. Bb5 {[%emt 0:00:06]} e6 {[%emt 0:00:05]} 4. O-O {[%emt 0:00:20]} Nge7 {[%emt 0:00:05]} 5. Re1 {[%emt 0:00:07]} b6 {[%emt 0:00:10]} (5... a6 $11 6. Bf1 d5) 6. c3 $14 {[%emt 0:00:31]} a6 {[%emt 0:00:07]} 7. Be2 {[%emt 0:00:14]} d5 {[%emt 0:16:41]} 8. exd5 {[%emt 0:00:47] White has an edge.} Nxd5 {[%emt 0:00:07]} 9. d4 {[%emt 0:00:09]} Be7 {[%emt 0:00:33][%cal Bf8e7,Be7d8,Bd8a5,Ba5b6][%mdl 32]} 10. dxc5 {[%emt 0:11:56]} bxc5 {[%emt 0:02:24]} 11. c4 {[%emt 0:00:34]} Nf6 {[%emt 0:00:09]} 12. Qxd8+ {[%emt 0:00:22]} Bxd8 {[%emt 0:01:29]} 13. Nc3 {[%emt 0:03:37][%cal Bb1c3,Bc3a4,Ba4c5][%mdl 32]} Nd4 {[%emt 0:09:15]} 14. Nxd4 {[%emt 0:07:39]} cxd4 {[%emt 0:00:10]} 15. Bf3 {[%emt 0:00:09]} Ra7 {[%emt 0:13:00][%cal Ba8a7,Ba7c7,Bc7c4,Bc4c3][%mdl 32]} 16. Na4 {[%emt 0:01:52]} Ba5 {[%emt 0:00:26]} 17. Re2 {[%emt 0:05:40]} Bd7 {[%emt 0:22:53]} 18. Nc5 {[%emt 0:01:08]} Rc7 {[%emt 0:00:06]} 19. Re5 {[%emt 0:24:58][%cal Oc5d7] Black must now prevent Nxd7! White is much more active.} (19. Nb7 {seems wilder.} d3 20. Nxa5 dxe2 21. Bf4) 19... Bb6 {[%emt 0:02:17]} 20. Nxa6 {[%emt 0:01:44]} Rxc4 {[%emt 0:00:25]} 21. b3 {[%emt 0:00:11]} Rc3 {[%emt 0:08:49]} 22. Bd2 {[%emt 0:11:57]} (22. Ba3 $14) 22... Rc2 $11 {[%emt 0:01:01]} 23. Ba5 {[%emt 0:00:16]} Bxa5 {[%emt 0:06:01]} 24. Rxa5 {[%emt 0:00:10]} Ke7 {[%emt 0:00:08]} 25. Nb4 {[%emt 0:03:24]} Rc3 {[%emt 0:00:16]} 26. Rd1 $36 {[%emt 0:00:59][%mdl 2048] White has the initiative.} Rb8 {[%emt 0:00:45]} 27. Nd3 {[%emt 0:00:21]} Rb5 {[%emt 0:06:46]} 28. Ra7 {[%emt 0:01:06]} g5 {[%emt 0:04:09]} 29. h3 {[%emt 0:03:46]} Kd6 {[%emt 0:01:21]} 30. b4 {[%emt 0:05:16]} (30. Ra6+ {simplifies} Ke7 31. b4 Rxd3 32. Rxd3 Rxb4 33. Ra5) 30... h5 {[%emt 0:06:27]} 31. a4 {[%emt 0:02:24]} Rb8 {[%emt 0:00:03]} ({Black should play} 31... Rb6 $14) 32. b5 $16 {[%emt 0:00:33]} g4 {[%emt 0:00:05]} 33. hxg4 {[%emt 0:00:10]} hxg4 {[%emt 0:00:03]} 34. Be2 {[%emt 0:01:57]} Be8 {[%emt 0:01:49]} 35. Ra6+ {[%emt 0:01:09]} Kd5 {[%emt 0:00:36]} 36. f3 {[%emt 0:02:53]} ({Better is} 36. g3 $1 $16) 36... g3 {[%emt 0:00:43]} (36... gxf3 $1 $14 37. gxf3 (37. Bxf3+ Kc4 $18) 37... Ng8) 37. Bf1 $1 $18 {[%emt 0:00:37]} Nh5 {[%emt 0:00:49]} 38. Nb4+ {[%emt 0:03:57]} (38. Re1 $18 {Hoping for Re5+.} Nf6 39. Nf4+ Kc5 40. Ne2) 38... Ke5 $1 $14 {[%emt 0:00:30]} 39. Re1+ {[%emt 0:00:22]} Kf5 {[%emt 0:08:11] [#]} 40. Rd6 $1 {[%emt 0:01:41]} Ra8 {[%emt 0:00:43] [#]} (40... Re3 $142 41. Rd1 Nf6 42. R6xd4 Rc3) 41. Na6 $1 $18 {[%emt 0:53:58]} (41. Rxd4 $6 Rxa4 42. b6 Rb3 $16) (41. Bd3+ Kg5 $14) 41... e5 $2 {[%emt 0:50:37]} (41... Re3 42. Rd1 Nf4 (42... e5 $2 43. Nc7 $18) 43. R6xd4 (43. R1xd4 $2 {loses.} Re1 $19) 43... e5) 42. b6 {[%emt 0:01:46]} (42. Nc7 $142 Rxa4 (42... Rxc7 $2 {too greedy.} 43. Bd3+ e4 44. Bxe4+ Kg5 45. Bxa8 $18) 43. Nxe8) 42... Rb3 $2 {[%emt 0:00:00]} (42... Bc6) 43. Nc5 {[%emt 0:00:00]} Re3 {[%emt 0:00:00]} 44. Rxe3 {[%emt 0:00:00] Intending b7 and mate.} dxe3 {[%emt 0:00:00]} 45. b7 {[%emt 0:00:00]} Rb8 {[%emt 0:00:00]} 46. a5 {[%emt 0:00:00]} Nf4 {[%emt 0:00:00]} 47. Ne4 {[%emt 0:00:00] Weighted Error Value: White=0.23 (precise) /Black=0.46.  Mistake:       	White=4     	Black=5      Inaccurate:     	White=5     	Black=8      OK:         	White=17    	Black=9      Best:        	White=3     	Black=3      Strong:       	White=1     	Black=1} 1-0

[Event "German Bundesliga 2023-24"]
[Site "Germany"]
[Date "2024.02.23"]
[Round "9.18"]
[White "Iturrizaga Bonelli, Eduardo"]
[Black "Rapport, Richard"]
[Result "0-1"]
[ECO "E73"]
[WhiteElo "2600"]
[BlackElo "2717"]
[Annotator "TA"]
[PlyCount "80"]
[EventDate "2023.10.20"]
[EventType "team-tourn"]
[EventCountry "GER"]
[SourceTitle "playchess.com"]
[Source "ChessBase"]
[SourceQuality "1"]
[TimeControl "40/6000+30:3000+30"]

{[%evp 30,80,69,74,59,72,115,0,3,-20,-5,-5,-9,-5,-5,-52,-62,-89,-95,-102,-93,-173,-145,-189,-173,-363,-288,-270,-273,-293,-281,-302,-209,-293,-284,-297,-44,-56,0,-189,-200,-536,-540,-597,-695,-552,-683,-685,-632,-694,-708,-817,-786]} 1. c4 {[%emt 0:00:05]} g6 {[%emt 0:00:50]} 2. e4 {[%emt 0:04:40]} Bg7 {[%emt 0:01:48]} 3. d4 {[%emt 0:00:14]} d6 {[%emt 0:00:04]} 4. Nc3 {[%emt 0:00:05]} Nf6 {[%emt 0:00:15]} 5. Be2 {[%emt 0:00:50]} O-O {[%emt 0:00:08]} 6. Be3 {[%emt 0:00:04]} Na6 {[%emt 0:00:11] E73: King's Indian: Averbakh Variation without 6...c5.} 7. h3 {[%emt 0:04:48]} c6 {[%emt 0:01:35]} 8. Nf3 {[%emt 0:00:41]} e5 {[%emt 0:00:10]} 9. d5 {[%emt 0:03:39]} Nh5 {[%emt 0:00:38]} 10. O-O {[%emt 0:02:22]} Nf4 {[%emt 0:01:29]} 11. Re1 {[%emt 0:00:53]} Nxe2+ {[%emt 0:05:59]} 12. Qxe2 {[%emt 0:01:15]} c5 {[%emt 0:11:10]} 13. Kh1 $146 {[%emt 0:12:30]} ({Predecessor:} 13. Kh2 f5 14. Bg5 Qe8 15. exf5 gxf5 16. Nh4 h6 17. Bc1 Qf7 18. g3 Kh7 19. g4 fxg4 {1-0 Perry,W (2210)-Guerra,R (2247) W-ch WS/M/682 email 2018}) 13... f5 {[%emt 0:51:54]} 14. exf5 {[%emt 0:46:08]} gxf5 {[%emt 0:00:00]} 15. Rg1 {[%emt 0:07:32]} e4 {[%emt 0:00:00]} 16. Bg5 $1 {[%emt 0:17:57]} (16. Ng5 f4 17. Ncxe4 (17. Ngxe4 $2 Qh4 $19) (17. Qh5 $2 h6 $17) 17... fxe3 18. Qxe3 h6 $19 (18... Bxb2 19. Raf1 $17)) 16... Qe8 {[%emt 0:00:00]} (16... exf3 $2 17. gxf3 Qd7 18. Bh6 $18) 17. Nh4 {[%emt 0:02:12]} Nb4 {[%emt 0:00:00]} 18. Rad1 {[%emt 0:02:38]} (18. g4 $16 {Black must now prevent gxf5.} Nd3 19. Raf1) 18... Bd7 $11 {[%emt 0:00:00]} 19. g3 {[%emt 0:00:52]} (19. g4 {feels hotter.} fxg4 20. Nxe4 Rxf2 21. Qxf2 Qxe4+ 22. Qg2) 19... Nd3 {[%emt 0:00:00]} 20. Rxd3 {[%emt 0:00:07]} exd3 {[%emt 0:00:00]} 21. Qxd3 {[%emt 0:00:04]} a6 {[%emt 0:00:00]} 22. Qd2 {[%emt 0:01:14]} (22. Bf4 $11 {might be stronger.}) 22... b5 $15 {[%emt 0:00:06]} 23. Re1 {[%emt 0:00:27] [#]} Qh5 $1 {[%emt 0:00:13]} 24. Bf4 {[%emt 0:00:33] [#]} Rfe8 $1 {[%emt 0:01:40]} 25. Bxd6 {[%emt 0:00:36]} (25. Ne2 $17) 25... Rxe1+ $19 {[%emt 0:00:33]} (25... bxc4 26. Kh2 $15) 26. Qxe1 {[%emt 0:00:03]} Re8 {[%emt 0:00:03]} (26... bxc4 27. Be5 $11 (27. Qe7 $2 Qf7 $17)) 27. Be7 $2 {[%emt 0:00:49]} (27. Qf1 {was the only chance.}) 27... Qf7 {[%emt 0:13:15]} (27... bxc4 28. f4 $19) 28. d6 {[%emt 0:00:07]} Qxc4 {[%emt 0:00:04]} (28... bxc4 29. Qd2 $17) 29. Qd2 {[%emt 0:00:58]} Qd4 {[%emt 0:03:11]} 30. Qe2 {[%emt 0:00:27]} Qe5 {[%emt 0:02:23]} (30... b4 31. Nf3 Bc6 32. Kg1 Bxf3 33. Qxf3 bxc3 34. bxc3 $19) 31. Qd1 {[%emt 0:00:36]} (31. Qf3 $142 Rb8 32. Kg1) 31... f4 {[%emt 0:01:39]} 32. g4 {[%emt 0:00:21]} Qd4 $2 {[%emt 0:03:42]} ({Better is} 32... b4 $19 33. Ne2 c4 (33... Qxb2 $2 34. Qd5+ Kh8 35. Ng1 $19)) 33. Qf3 $15 {[%emt 0:00:18]} b4 {[%emt 0:03:34]} (33... Be5 $1 $15 34. Nd5 c4 (34... Qxb2 $2 35. Nb6 $18) (34... Bc6 $2 35. Nf6+ Bxf6 36. Qxc6 $18)) 34. Ne2 $2 {[%emt 0:00:50]} (34. Ne4 $11 {and White stays safe.}) 34... Qd1+ $19 {[%emt 0:00:39]} (34... Qxb2 35. Nf5 Qxa2 36. Nxg7 Qa1+ (36... Kxg7 37. Nxf4 Qf7 38. Nh5+ Kg8 39. Qe3 $11) 37. Kh2 Qxg7 38. Qd5+ Qf7 39. Qxc5 $11 (39. Qxf7+ $2 Kxf7 40. Nxf4 c4 $19)) 35. Kg2 $2 {[%emt 0:00:07]} (35. Kh2 {was the crucial defense.} Be5 (35... Bxb2 36. Nf5 $17) 36. Qe4 Bxd6 (36... Bxb2 37. Nf5 $11) 37. Qc4+ Kg7 38. Bxd6 Qxd6 (38... Qxe2 39. Qxc5 Qxb2 40. Qg5+ Kf7 41. Qd5+ Re6 42. Bc5 $16) 39. Nxf4) 35... Rc8 $19 {[%emt 0:00:59]} ({Less strong is} 35... Bxb2 36. Qb7 Bb5 (36... Bc8 37. Qc6 $18) 37. Ng1 $17) 36. Qb3+ {[%emt 0:00:55]} Qxb3 {[%emt 0:00:04]} 37. axb3 {[%emt 0:00:06]} Bxb2 {[%emt 0:00:51]} 38. Nxf4 {[%emt 0:00:26]} c4 {[%emt 0:00:47]} 39. bxc4 {[%emt 0:00:06]} b3 {[%emt 0:01:23]} 40. Nd5 {[%emt 0:00:39]} Bg7 {[%emt 0:01:55]} 0-1

[Event "German Bundesliga 2023-24"]
[Site "Germany"]
[Date "2024.02.23"]
[Round "9.19"]
[White "Aronian, Levon"]
[Black "Oleksiyenko, Mykhaylo"]
[Result "1/2-1/2"]
[ECO "E14"]
[WhiteElo "2725"]
[BlackElo "2567"]
[Annotator "TA"]
[PlyCount "81"]
[EventDate "2023.10.20"]
[EventType "team-tourn"]
[EventCountry "GER"]
[SourceTitle "playchess.com"]
[Source "ChessBase"]
[SourceQuality "1"]
[TimeControl "40/6000+30:3000+30"]

{[%evp 11,81,-3,0,0,0,0,0,-4,0,0,0,0,0,-6,0,-5,-2,-14,0,-15,-6,-13,0,-35,-36,-40,-8,-22,0,0,0,0,-3,0,-4,-7,-25,-21,-1,-15,-8,-12,0,0,0,0,0,0,0,0,0,0,0,0,4,0,0,0,0,0,0,0,0,0,0,0,0,0,0,0,0,0]} 1. d4 {[%emt 0:00:07]} d5 {[%emt 0:00:15]} 2. Nf3 {[%emt 0:00:07]} e6 {[%emt 0:01:23]} 3. c4 {[%emt 0:01:24]} Nf6 {[%emt 0:00:14]} 4. e3 {[%emt 0:00:17]} b6 {[%emt 0:04:33]} 5. Nc3 {[%emt 0:00:41]} Bb7 {[%emt 0:00:51]} 6. cxd5 {[%emt 0:00:08]} exd5 {[%emt 0:02:16]} 7. Qa4+ {[%emt 0:00:09]} c6 {[%emt 0:03:07]} 8. Bd3 {[%emt 0:02:11]} Be7 {[%emt 0:02:07]} 9. O-O {[%emt 0:01:59]} O-O {[%emt 0:01:04]} 10. Rd1 {[%emt 0:01:36]} Nbd7 {[%emt 0:14:45]} 11. Qc2 {[%emt 0:00:19]} Re8 {[%emt 0:04:39]} 12. b3 {[%emt 0:01:23]} Rc8 {[%emt 0:01:20]} 13. Bb2 {[%emt 0:02:54]} Bd6 {[%emt 0:10:27]} 14. Bf5 {[%emt 0:01:39]} Qe7 {[%emt 0:02:14]} 15. Re1 {[%emt 0:01:20]} g6 {[%emt 0:02:19] Dodges e4} 16. Bh3 {[%emt 0:02:31]} Rcd8 {[%emt 0:00:08]} 17. Ne2 {[%emt 0:05:36][%cal Bc3e2,Be2f4,Bf4d3][%mdl 32]} Ne4 {[%emt 0:02:57]} 18. Nf4 {[%emt 0:00:15]} Ndf6 {[%emt 0:07:03] Threatening ...g5.} 19. Nd3 {[%emt 0:01:04]} Bc8 {[%emt 0:04:32]} 20. Bxc8 {[%emt 0:00:07]} Rxc8 {[%emt 0:00:01]} 21. Rad1 {[%emt 0:06:33]} c5 {[%emt 0:02:31]} 22. dxc5 {[%emt 0:01:26]} bxc5 {[%emt 0:00:17]} 23. Nf4 {[%emt 0:00:22]} Bxf4 {[%emt 0:09:15]} 24. exf4 {[%emt 0:00:07]} d4 {[%emt 0:01:24] The position is equal.} 25. Nd2 {[%emt 0:06:31][%cal Bf3d2,Bd2c4,Bc4e5][%mdl 32] [#] And now Nxe4 would win.} Qb7 {[%emt 0:01:58]} 26. Nc4 {[%emt 0:00:10] f3 is the strong threat.} Qc7 {[%emt 0:04:04]} 27. Ne5 {[%emt 0:03:32]} Nd6 {[%emt 0:01:12][%cal Be4d6,Bd6c4,Bc4e5,Be5c4,Bc4b2][%mdl 32]} 28. b4 {[%emt 0:07:10]} cxb4 {[%emt 0:03:56]} 29. Qxc7 {[%emt 0:00:18]} Rxc7 {[%emt 0:00:02]} 30. Rxd4 {[%emt 0:00:12]} Nc4 {[%emt 0:10:00]} 31. Rc1 {[%emt 0:04:31]} (31. Rxc4 $2 {is the wrong capture.} Rxc4 32. Rb1 Rc2 $19 (32... Rxf4 $2 33. Nd3 $19)) 31... Nxe5 {[%emt 0:00:03] A dynamic duo of knights.} 32. Rxc7 {[%emt 0:00:06]} Nc4 {[%emt 0:00:14][%cal Re8e1] [#]} 33. g3 $1 {[%emt 0:03:24]} Nxb2 {[%emt 0:00:07]} 34. Rxa7 {[%emt 0:00:10]} Rb8 {[%emt 0:04:57]} 35. Kf1 {[%emt 0:07:28]} b3 {[%emt 0:04:39]} 36. axb3 {[%emt 0:01:00]} Rxb3 {[%emt 0:00:15]} 37. Rc7 {[%emt 0:00:13]} Kg7 {[%emt 0:02:58]} 38. Ke2 {[%emt 0:00:42]} h5 {[%emt 0:01:07]} 39. Rc2 {[%emt 0:03:46]} Ng4 {[%emt 0:03:11]} 40. h3 {[%emt 0:00:25]} Nh6 {[%emt 0:00:35]} 41. Rc7 {[%emt 0:53:00] Weighted Error Value: White=0.03 (flawless) /Black=0.04 (flawless) .  Inaccurate:     	White=1     	Black=1      OK:         	White=22    	Black=15     Best:        	White=1     	Black=1} 1/2-1/2

[Event "German Bundesliga 2023-24"]
[Site "Germany"]
[Date "2024.02.23"]
[Round "9.20"]
[White "Bauer, Christian"]
[Black "Vachier-Lagrave, Maxime"]
[Result "1/2-1/2"]
[ECO "D02"]
[WhiteElo "2564"]
[BlackElo "2734"]
[Annotator "TA"]
[PlyCount "41"]
[EventDate "2023.10.20"]
[EventType "team-tourn"]
[EventCountry "GER"]
[SourceTitle "playchess.com"]
[Source "ChessBase"]
[SourceQuality "1"]
[TimeControl "40/6000+30:3000+30"]

{[%evp 9,41,26,21,21,42,21,30,21,34,6,23,9,8,9,26,26,22,9,12,8,19,6,16,0,14,0,0,0,0,-10,-8,-18,-18,-16]} 1. d4 {[%emt 0:00:03]} Nf6 {[%emt 0:00:04]} 2. Nf3 {[%emt 0:00:08]} g6 {[%emt 0:00:07]} 3. Nbd2 {[%emt 0:00:13]} d5 {[%emt 0:00:20]} 4. e3 {[%emt 0:01:06]} Bg7 {[%emt 0:00:07]} 5. b4 {[%emt 0:00:06]} O-O {[%emt 0:03:16]} 6. Bb2 {[%emt 0:01:01]} Be6 {[%emt 0:08:00]} 7. Be2 {[%emt 0:04:03]} Ne8 {[%emt 0:02:06]} 8. c4 {[%emt 0:03:54] White has an edge.} dxc4 {[%emt 0:01:03]} 9. Bxc4 {[%emt 0:04:23]} Bxc4 {[%emt 0:01:40]} 10. Nxc4 {[%emt 0:00:02]} Qd5 {[%emt 0:09:09]} 11. Qb3 {[%emt 0:02:32]} a6 {[%emt 0:02:31]} 12. O-O {[%emt 0:10:23][%cal Bh1f1,Bf1c1,Bc1c5][%mdl 32]} Nc6 {[%emt 0:00:32]} 13. Na5 {[%emt 0:05:53] The position is equal.} Qxb3 {[%emt 0:00:34]} 14. axb3 {[%emt 0:00:15] Threatens to win with Nxc6.} Nxa5 {[%emt 0:05:36]} 15. bxa5 {[%emt 0:01:33]} Nd6 {[%emt 0:00:05]} 16. Rfc1 {[%emt 0:05:47]} Rac8 {[%emt 0:02:48]} 17. Rc5 {[%emt 0:04:53]} Rfd8 {[%emt 0:02:37]} 18. Rac1 {[%emt 0:03:00]} Nb5 {[%emt 0:02:08]} 19. g4 {[%emt 0:02:43]} e6 {[%emt 0:01:29]} 20. Kg2 {[%emt 0:07:51]} Bf8 {[%emt 0:01:28]} 21. R5c4 {[%emt 0:00:28] Weighted Error Value: White=0.08 (flawless) /Black=0.03 (flawless) .  Inaccurate:     	White=1     	---        OK:         	White=1     	Black=9} 1/2-1/2

[Event "German Bundesliga 2023-24"]
[Site "Germany"]
[Date "2024.02.23"]
[Round "9.21"]
[White "Keymer, Vincent"]
[Black "Grigoriants, Sergey"]
[Result "1-0"]
[ECO "A20"]
[WhiteElo "2721"]
[BlackElo "2543"]
[Annotator "TA"]
[PlyCount "67"]
[EventDate "2023.10.20"]
[EventType "team-tourn"]
[EventCountry "GER"]
[SourceTitle "playchess.com"]
[Source "ChessBase"]
[SourceQuality "1"]
[TimeControl "40/6000+30:3000+30"]

{[%evp 9,67,0,0,0,2,6,4,4,16,0,0,0,0,-35,-29,-34,-35,-37,-45,-47,0,0,0,-6,17,2,24,6,68,75,67,63,75,64,61,68,58,69,95,104,113,121,149,167,175,139,473,453,605,708,672,654,221,225,723,723,697,679,670,644]} 1. c4 {[%emt 0:00:06]} e5 {[%emt 0:03:58]} 2. d3 {[%emt 0:00:04]} Nf6 {[%emt 0:05:45]} 3. Nf3 {[%emt 0:00:20]} Bb4+ {[%emt 0:06:59]} 4. Bd2 {[%emt 0:01:14]} Bxd2+ {[%emt 0:00:29]} 5. Qxd2 {[%emt 0:00:05]} d6 {[%emt 0:01:52]} 6. h3 {[%emt 0:00:04]} Nc6 {[%emt 0:12:39]} 7. Nc3 {[%emt 0:03:42]} h6 {[%emt 0:08:21]} 8. e3 {[%emt 0:02:41] The position is equal.} Bf5 {[%emt 0:08:58]} 9. O-O-O {[%emt 0:22:29]} Bh7 {[%emt 0:02:57]} 10. g4 {[%emt 0:05:10]} d5 {[%emt 0:19:24]} 11. g5 {[%emt 0:05:46]} hxg5 {[%emt 0:00:31]} 12. Nxg5 {[%emt 0:00:05]} Bg6 {[%emt 0:00:16]} 13. cxd5 {[%emt 0:07:50]} Nxd5 {[%emt 0:00:32]} 14. Rg1 {[%emt 0:00:03][%cal Og5e6]} Rh6 {[%emt 0:13:23]} (14... Qd7 $15) 15. Bg2 $11 {[%emt 0:07:50]} Ncb4 {[%emt 0:12:48] White must now prevent ...Nxc3.} 16. Be4 {[%emt 0:04:41]} Qd6 {[%emt 0:01:45] Inhibits Ne6.} 17. Nxd5 {[%emt 0:11:57]} Nxd5 {[%emt 0:00:04]} 18. d4 {[%emt 0:02:09] Strongly threatening Bxg6.} Nb4 {[%emt 0:05:33]} ({Better is} 18... Bh5 $11 19. dxe5 Qc5+ 20. Kb1 Bxd1 21. Nxf7 (21. Qxd1 c6 $11) (21. Bxd5 Bc2+ 22. Qxc2 Qxd5 $15) (21. Rxd1 c6 $11) 21... Nc3+ 22. bxc3 Rb6+ 23. Ka1 Bh5 (23... Kxf7 $2 24. Qd7+ Kf8 25. Qxg7+ Ke8 26. Bg6+ Kd8 27. Rxd1+ $18)) 19. Bxg6 $14 {[%emt 0:04:15]} (19. Bxb7 $2 Nxa2#) 19... Rxg6 {[%emt 0:00:11]} 20. a3 $1 {[%emt 0:00:19]} Nc6 {[%emt 0:01:39]} 21. Ne4 {[%emt 0:01:36][%cal Bg5e4,Be4c3,Bc3b5][%mdl 32]} Qd5 {[%emt 0:00:28]} 22. Rxg6 {[%emt 0:00:06]} fxg6 {[%emt 0:00:02]} 23. Nc3 {[%emt 0:00:11]} Qf3 {[%emt 0:00:24]} 24. d5 $1 {[%emt 0:00:49][%cal Bd4d5,Bd5d6][%mdl 32]} O-O-O {[%emt 0:00:46][%cal Be8c8,Bc8b8,Bb8a8][%mdl 32]} 25. Qc2 $36 {[%emt 0:08:33][%mdl 2048] Keeping Black busy.} Ne7 {[%emt 0:00:01][%cal Oa7a6]} 26. Nb5 $1 {[%emt 0:00:48][%csl Gb5,LRa7,LRc7][%cal Rc2c7]} c6 {[%emt 0:00:35]} (26... Rxd5 27. Qxc7#) (26... Nxd5 27. Rxd5 (27. Nxa7+ Kb8 $11) 27... Qh1+ 28. Rd1 (28. Qd1 $2 Qxd5 29. Qg4+ Qd7 $19) 28... Rxd1+ 29. Qxd1) 27. d6 {[%emt 0:00:30]} Nf5 $2 {[%emt 0:01:16][%mdl 8192] This move loses the game for Black.} (27... Nd5 $16 {is tougher.}) 28. Qc4 $1 $18 {[%emt 0:08:34]} Qxf2 {[%emt 0:02:05]} 29. Qe6+ $1 {[%emt 0:00:21]} Kb8 {[%emt 0:00:04] [#]} 30. Qf7 $1 {[%emt 0:00:19] Qc7+ would kill now.} Qxe3+ {[%emt 0:00:23]} 31. Kb1 {[%emt 0:00:10] Intending Qc7+ and mate.} Qb6 {[%emt 0:00:10] [#]} ({Weaker is} 31... cxb5 32. Qc7+ Ka8 33. Qxd8#) (31... Qe4+ 32. Ka1 Qh4 (32... cxb5 33. Qc7+ Ka8 34. Qxd8#)) 32. Qc7+ $1 {[%emt 0:00:11] White is clearly winning.} Ka8 {[%emt 0:00:03] [#]} 33. d7 $1 {[%emt 0:00:12]} Ne7 {[%emt 0:01:09] Prevents Qc8+} 34. Qxb6 {[%emt 0:00:07] Weighted Error Value: White=0.02 (flawless) /Black=0.47.  Loses game:     	---       	Black=1      Mistake:       	---       	Black=2      Inaccurate:     	White=1     	Black=2      OK:         	White=13    	Black=7      Best:        	White=1     	Black=3      Strong:       	White=6     	---} ({Inferior is} 34. Qxe5 Qxb5 35. Qxe7 Qf5+ 36. Ka2 Qf6 $11) 1-0